fUST/lending_fUST_20240815
["ID","MTS","AMOUNT","RATE_DAILY","PERIOD"]
[334944892,1723665046358,-500.0,0.00013698,2]
[334944894,1723665046367,-985.49,0.00013698,2]
[334944896,1723665046377,-873.92,0.00013698,2]
[334944898,1723665046386,-576.59,0.00013698,2]
[334944900,1723665046396,-500.0,0.00013698,2]
[334944902,1723665046406,-683.15,0.00013698,2]
[334944904,1723665046415,-500.0,0.00013698,2]
[334944906,1723665046426,-500.0,0.00013698,2]
[334944908,1723665046435,-500.0,0.00013698,2]
[334944910,1723665046444,-843.27,0.00013698,2]
[334944912,1723665046454,-500.0,0.00013698,2]
[334944914,1723665046463,-500.0,0.00013698,2]
[334944917,1723665046473,-500.0,0.00013698,2]
[334944919,1723665046483,-500.0,0.00013698,2]
[334944921,1723665046493,-500.0,0.00013698,2]
[334944923,1723665046502,-500.0,0.00013698,2]
[334944925,1723665046511,-244.35540371,0.00013698,2]
[334944927,1723665046521,-620.11,0.00013698,2]
[334944929,1723665046531,-530.89,0.00013698,2]
[334944931,1723665046540,-500.0,0.00013698,2]
[334944933,1723665046550,-500.0,0.00013698,2]
[334944935,1723665046559,-596.73,0.00013698,2]
[334944936,1723665046568,-596.73,0.00013698,2]
[334944938,1723665046578,-500.0,0.00013698,2]
[334944940,1723665046588,-580.19,0.00013698,2]
[334944942,1723665046597,-500.0,0.00013698,2]
[334944944,1723665046607,-500.0,0.00013698,2]
[334944946,1723665046617,-500.0,0.00013698,2]
[334944948,1723665046626,-500.0,0.00013698,2]
[334944950,1723665046635,-500.0,0.00013698,2]
[334944953,1723665046646,-500.0,0.00013698,2]
[334944954,1723665046656,-500.95829879,0.00013698,2]
[334944956,1723665046666,-525.11,0.00013698,2]
[334944958,1723665046677,-500.0,0.00013698,2]
[334944961,1723665046688,-500.0,0.00013698,2]
[334944963,1723665046698,-500.0,0.00013698,2]
[334944965,1723665046707,-500.0,0.00013698,2]
[334944967,1723665046718,-500.0,0.00013698,2]
[334944969,1723665046728,-2442.15,0.00013698,2]
[334944971,1723665046738,-500.0,0.00013698,2]
[334944973,1723665046748,-500.0,0.00013698,2]
[334944975,1723665046758,-500.0,0.00013698,2]
[334944977,1723665046768,-522.54,0.00013698,2]
[334944979,1723665046779,-500.0,0.00013698,2]
[334944981,1723665046789,-500.0,0.00013698,2]
[334944983,1723665046799,-500.89830251,0.00013698,2]
[334944985,1723665046808,-789.4,0.00013698,2]
[334944987,1723665046818,-500.0,0.00013698,2]
[334944988,1723665046827,-500.0,0.00013698,2]
[334944990,1723665046837,-500.0,0.00013698,2]
[334944992,1723665046846,-500.0,0.00013698,2]
[334944995,1723665046856,-500.0,0.00013698,2]
[334944997,1723665046865,-500.0,0.00013698,2]
[334944999,1723665046875,-500.0,0.00013698,2]
[334945002,1723665046884,-500.0,0.00013698,2]
[334945005,1723665046895,-501.22437282,0.00013698,2]
[334945007,1723665046909,-945.92,0.00013698,2]
[334945009,1723665046918,-500.0,0.00013698,2]
[334945011,1723665046929,-500.0,0.00013698,2]
[334945013,1723665046939,-500.0,0.00013698,2]
[334945015,1723665046949,-500.0,0.00013698,2]
[334945017,1723665046957,-500.0,0.00013698,2]
[334945019,1723665046966,-500.0,0.00013698,2]
[334945021,1723665046976,-500.0,0.00013698,2]
[334945022,1723665046986,-1381.78,0.00013698,2]
[334945024,1723665046995,-500.0,0.00013698,2]
[334945026,1723665047004,-551.79,0.00013698,2]
[334945028,1723665047014,-500.0,0.00013698,2]
[334945030,1723665047023,-515.84301253,0.00013698,2]
[334945032,1723665047033,-500.0,0.00013698,2]
[334945033,1723665047042,-500.0,0.00013698,2]
[334945034,1723665047051,-657.79,0.00013698,2]
[334945035,1723665047060,-500.0,0.00013698,2]
[334945036,1723665047070,-500.0,0.00013698,2]
[334945037,1723665047079,-500.0,0.00013698,2]
[334945038,1723665047089,-704.7,0.00013698,2]
[334945039,1723665047098,-556.13,0.00013698,2]
[334945040,1723665047108,-625.17776605,0.00013698,2]
[334945041,1723665047117,-500.0,0.00013698,2]
[334945043,1723665047126,-500.0,0.00013698,2]
[334945045,1723665047136,-500.0,0.00013698,2]
[334945047,1723665047146,-500.0,0.00013698,2]
[334945049,1723665047155,-252.93024233,0.00013698,2]
[334945050,1723665047165,-500.0,0.00013698,2]
[334945053,1723665047176,-588.42,0.00013698,2]
[334945055,1723665047189,-288.47048543,0.00013698,2]
[334945057,1723665047198,-620.48,0.00013698,2]
[334945059,1723665047208,-500.0,0.00013698,2]
[334945060,1723665047218,-500.0,0.00013698,2]
[334945062,1723665047227,-500.0,0.00013698,2]
[334945064,1723665047237,-24672.8748664,0.00013699,2]
[334945067,1723665047248,-3168.330331,0.00013699,2]
[334945069,1723665047257,-3000.0,0.00013699,2]
[334945071,1723665047266,-222.032009,0.00013699,2]
[334945073,1723665047276,-222.032009,0.00013699,2]
[334945074,1723665047285,-151.0,0.00013699,2]
[334945076,1723665047294,-151.0,0.00013699,2]
[334945078,1723665047304,-500.0,0.00013699,2]
[334945081,1723665047313,-500.0,0.00013699,2]
[334945083,1723665047323,-500.0,0.00013699,2]
[334945096,1723665047439,-500.0,0.00013699,2]
[334945098,1723665047448,-500.0,0.00013699,2]
[334945100,1723665047458,-500.0,0.00013699,2]
[334945102,1723665047467,-500.0,0.00013699,2]
[334945104,1723665047477,-500.0,0.00013699,2]
[334945106,1723665047487,-500.0,0.00013699,2]
[334945108,1723665047496,-500.0,0.00013699,2]
[334945110,1723665047506,-500.0,0.00013699,2]
[334945112,1723665047515,-500.0,0.00013699,2]
[334945114,1723665047524,-500.0,0.00013699,2]
[334945116,1723665047533,-500.0,0.00013699,2]
[334945118,1723665047543,-500.0,0.00013699,2]
[334945120,1723665047552,-500.0,0.00013699,2]
[334945122,1723665047562,-500.0,0.00013699,2]
[334945124,1723665047571,-500.0,0.00013699,2]
[334945126,1723665047581,-500.0,0.00013699,2]
[334945128,1723665047590,-252.9301957,0.00013699,2]
[334945129,1723665047599,-500.0,0.00013699,2]
[334945131,1723665047608,-500.0,0.00013699,2]
[334945133,1723665047617,-500.0,0.00013699,2]
[334945135,1723665047626,-500.0,0.00013699,2]
[334945137,1723665047635,-500.0,0.00013699,2]
[334945139,1723665047644,-500.0,0.00013699,2]
[334945141,1723665047653,-500.0,0.00013699,2]
[334945143,1723665047662,-500.0,0.00013699,2]
[334945145,1723665047672,-500.0,0.00013699,2]
[334945147,1723665047682,-500.0,0.00013699,2]
[334945149,1723665047692,-500.0,0.00013699,2]
[334945151,1723665047701,-500.0,0.00013699,2]
[334945153,1723665047711,-500.0,0.00013699,2]
[334945155,1723665047720,-500.0,0.00013699,2]
[334945157,1723665047730,-500.0,0.00013699,2]
[334945159,1723665047740,-500.0,0.00013699,2]
[334945161,1723665047749,-500.0,0.00013699,2]
[334945163,1723665047759,-500.0,0.00013699,2]
[334945165,1723665047768,-500.0,0.00013699,2]
[334945167,1723665047778,-500.0,0.00013699,2]
[334945169,1723665047787,-500.0,0.00013699,2]
[334945171,1723665047797,-500.0,0.00013699,2]
[334945173,1723665047806,-500.0,0.00013699,2]
[334945175,1723665047815,-500.0,0.00013699,2]
[334945177,1723665047825,-500.0,0.00013699,2]
[334945179,1723665047834,-500.0,0.00013699,2]
[334945181,1723665047844,-500.0,0.00013699,2]
[334945183,1723665047853,-500.0,0.00013699,2]
[334945185,1723665047862,-500.0,0.00013699,2]
[334945187,1723665047871,-500.0,0.00013699,2]
[334945189,1723665047880,-500.0,0.00013699,2]
[334945191,1723665047890,-500.0,0.00013699,2]
[334945193,1723665047903,-500.0,0.00013699,2]
[334945195,1723665047912,-500.0,0.00013699,2]
[334945197,1723665047923,-500.0,0.00013699,2]
[334945199,1723665047932,-500.0,0.00013699,2]
[334945201,1723665047942,-409.85010105,0.00013699,2]
[334945203,1723665047952,-500.0,0.00013699,2]
[334945205,1723665047961,-500.0,0.00013699,2]
[334945207,1723665047971,-500.0,0.00013699,2]
[334945209,1723665047981,-500.0,0.00013699,2]
[334945211,1723665047990,-500.0,0.00013699,2]
[334945213,1723665047999,-500.0,0.00013699,2]
[334945215,1723665048009,-500.0,0.00013699,2]
[334945217,1723665048018,-200.0,0.00013699,2]
[334945219,1723665048027,-500.0,0.00013699,2]
[334945221,1723665048036,-500.0,0.00013699,2]
[334945223,1723665048046,-500.0,0.00013699,2]
[334945225,1723665048055,-500.0,0.00013699,2]
[334945227,1723665048064,-500.0,0.00013699,2]
[334945229,1723665048073,-500.0,0.00013699,2]
[334945231,1723665048083,-596.41115685,0.00013699,2]
[334945233,1723665048092,-152.446725,0.00013699,2]
[334945235,1723665048101,-441.731858,0.00013699,2]
[334945237,1723665048111,-441.731858,0.00013699,2]
[334945239,1723665048120,-151.0,0.00013699,2]
[334945241,1723665048129,-153.098448,0.00013699,2]
[334945243,1723665048139,-591.904114,0.00013699,2]
[334945245,1723665048149,-591.904114,0.00013699,2]
[334945247,1723665048158,-538.498218,0.00013699,2]
[334945249,1723665048167,-538.498218,0.00013699,2]
[334945251,1723665048179,-151.0,0.00013699,2]
[334945253,1723665048194,-151.0,0.00013699,2]
[334945255,1723665048203,-151.0,0.00013699,2]
[334945257,1723665048213,-151.0,0.00013699,2]
[334945259,1723665048223,-151.0,0.00013699,2]
[334945261,1723665048232,-151.0,0.00013699,2]
[334945263,1723665048241,-580.840501,0.00013699,2]
[334945265,1723665048250,-151.0,0.00013699,2]
[334945267,1723665048259,-394.188205,0.00013699,2]
[334945269,1723665048268,-580.840501,0.00013699,2]
[334945271,1723665048277,-394.188205,0.00013699,2]
[334945273,1723665048286,-151.0,0.00013699,2]
[334945275,1723665048295,-151.0,0.00013699,2]
[334945277,1723665048304,-151.0,0.00013699,2]
[334945279,1723665048313,-151.0,0.00013699,2]
[334945281,1723665048321,-6871.07,0.00013699,2]
[334945283,1723665048330,-6871.07,0.00013699,2]
[334945285,1723665048340,-196.859771,0.00013699,2]
[334945287,1723665048349,-196.859771,0.00013699,2]
[334945289,1723665048358,-151.0,0.00013699,2]
[334945291,1723665048367,-151.0,0.00013699,2]
[334945293,1723665048376,-596.73,0.00013699,2]
[334945295,1723665048385,-596.73,0.00013699,2]
[334945297,1723665048394,-1247.682325,0.00013699,2]
[334945299,1723665048403,-1247.682325,0.00013699,2]
[334945302,1723665048413,-455.249197,0.00013699,2]
[334945304,1723665048422,-455.249197,0.00013699,2]
[334945305,1723665048432,-151.0,0.00013699,2]
[334945306,1723665048441,-151.0,0.00013699,2]
[334945307,1723665048451,-202.38655,0.00013699,2]
[334945308,1723665048460,-62380.32,0.000137,2]
[334945309,1723665048470,-151.0,0.000137,2]
[334945310,1723665048479,-150.112233,0.000137,2]
[334945311,1723665048489,-150.112233,0.000137,2]
[334945312,1723665048498,-150.112233,0.000137,2]
[334945313,1723665048507,-150.112233,0.000137,2]
[334945314,1723665048516,-150.112233,0.000137,2]
[334945316,1723665048526,-151.0,0.000137,2]
[334945318,1723665048535,-150.112236,0.000137,2]
[334945320,1723665048545,-594.054849,0.000137,2]
[334945322,1723665048555,-288.477061,0.000137,2]
[334945324,1723665048566,-186.205205,0.000137,2]
[334945326,1723665048575,-186.205205,0.000137,2]
[334945328,1723665048584,-288.477061,0.000137,2]
[334945330,1723665048593,-191.508285,0.000137,2]
[334945332,1723665048603,-191.508285,0.000137,2]
[334945334,1723665048613,-613.347926,0.000137,2]
[334945336,1723665048623,-613.347926,0.000137,2]
[334945338,1723665048632,-538.498218,0.000137,2]
[334945340,1723665048641,-538.498218,0.000137,2]
[334945342,1723665048651,-151.0,0.000137,2]
[334945344,1723665048660,-151.0,0.000137,2]
[334945346,1723665048669,-151.0,0.000137,2]
[334945348,1723665048684,-151.0,0.000137,2]
[334945350,1723665048693,-288.684043,0.000137,2]
[334945352,1723665048702,-194.563842,0.000137,2]
[334945354,1723665048712,-151.0,0.000137,2]
[334945356,1723665048721,-151.0,0.000137,2]
[334945358,1723665048730,-580.840501,0.000137,2]
[334945360,1723665048740,-151.0,0.000137,2]
[334945362,1723665048749,-580.840501,0.000137,2]
[334945364,1723665048758,-153.203742,0.000137,2]
[334945366,1723665048767,-151.0,0.000137,2]
[334945368,1723665048776,-151.0,0.000137,2]
[334945370,1723665048786,-151.0,0.000137,2]
[334945372,1723665048795,-150.112233,0.000137,2]
[334945374,1723665048804,-196.859771,0.000137,2]
[334945376,1723665048815,-196.859771,0.000137,2]
[334945378,1723665048824,-151.0,0.000137,2]
[334945380,1723665048834,-1247.682325,0.000137,2]
[334945382,1723665048843,-1247.682325,0.000137,2]
[334945384,1723665048852,-455.249197,0.000137,2]
[334945386,1723665048861,-455.249197,0.000137,2]
[334945388,1723665048871,-151.0,0.000137,2]
[334945390,1723665048880,-151.0,0.000137,2]
[334945392,1723665048890,-150.112233,0.000138,2]
[334945394,1723665048903,-150.112233,0.000138,2]
[334945396,1723665048913,-222.032009,0.00013858,2]
[334945399,1723665048925,-222.032009,0.00013858,2]
[334945400,1723665048935,-150.112233,0.000139,2]
[334945402,1723665048945,-150.112233,0.000139,2]
[334945404,1723665048954,-1535.44492912,0.00013961,2]
[334945406,1723665048963,-151.0,0.00013962,2]
[334945408,1723665048972,-569.785086,0.00013962,2]
[334945410,1723665048982,-569.785086,0.00013962,2]
[334945412,1723665048992,-151.0,0.00013962,2]
[334945414,1723665049001,-9212.66957472,0.00013962,2]
[334945416,1723665049011,-6871.07,0.0001397,2]
[334945418,1723665049020,-150.01,0.00013971,2]
[334945420,1723665049029,-1508.48435174,0.00013971,2]
[334945422,1723665049038,-591.904114,0.00013971,2]
[334945424,1723665049048,-591.904114,0.00013971,2]
[334945426,1723665049058,-394.188205,0.00013971,2]
[334945428,1723665049068,-394.188205,0.00013971,2]
[334945430,1723665049077,-6871.07,0.00013971,2]
[334945432,1723665049087,-3015.45647431,0.00013971,2]
[334945518,1723665050003,5015.04482254,0.00012783,2]
[334945525,1723665050056,-451.51601229,0.00012783,2]
[334945527,1723665050070,-815.24575236,0.00012783,2]
[334945529,1723665050081,-7778.00608985,0.00012783,2]
[334945531,1723665050091,-520.01905669,0.00013689,2]
[334945533,1723665050101,-500.0,0.00013698,2]
[334945535,1723665050110,-500.0,0.00013698,2]
[334945537,1723665050120,-2263.13478547,0.00013698,2]
[334945539,1723665050130,-3855.61352569,0.00013971,2]
[334945540,1723665050139,-6871.07,0.00013971,2]
[334945541,1723665050149,-6871.07,0.00013971,2]
[334945542,1723665050159,-6871.07,0.00013971,2]
[334945543,1723665050169,-6871.07,0.00013971,2]
[334945544,1723665050180,-6871.07,0.00013971,2]
[334945545,1723665050189,-872.39516845,0.00013971,2]
[334945546,1723665050200,-3155.85,0.00013971,2]
[334945547,1723665050211,-1800.17311432,0.00013971,2]
[334945548,1723665050224,-1042.65171723,0.00013971,2]
[334945549,1723665050235,-6871.23152246,0.00013971,2]
[334945550,1723665050246,-596.73,0.00013971,2]
[334945551,1723665050257,-596.73,0.00013971,2]
[334945552,1723665050267,-596.73,0.00013971,2]
[334945553,1723665050277,-596.73,0.00013971,2]
[334945554,1723665050286,-596.73,0.00013971,2]
[334945555,1723665050295,-596.73,0.00013971,2]
[334945556,1723665050305,-596.73,0.00013971,2]
[334945557,1723665050314,-596.73,0.00013971,2]
[334945558,1723665050323,-596.73,0.00013971,2]
[334945559,1723665050332,-596.73,0.00013971,2]
[334945560,1723665050341,-596.85286879,0.00013971,2]
[334945561,1723665050351,-1888.61074624,0.00013971,2]
[334945562,1723665050360,-5272.55622016,0.00013972,2]
[334945563,1723665050371,-460.4603601,0.00013972,2]
[334945564,1723665050738,-516.95174422,0.00013698,2]
[334945565,1723665050748,-2236.89908979,0.00013972,2]
[334945889,1723665951149,-200.0,0.0001,2]
[334945890,1723665951170,-400.0,0.0001137,2]
[334945891,1723665951192,-163.660971,0.00012401,2]
[334945892,1723665951216,-163.660971,0.00012466,2]
[334945893,1723665951238,-163.660971,0.00012531,2]
[334945894,1723665951259,-163.660971,0.00012595,2]
[334945895,1723665951281,-163.660971,0.0001266,2]
[334945896,1723665951303,-163.660971,0.00012725,2]
[334945897,1723665951324,-163.660971,0.00012789,2]
[334945898,1723665951344,-163.660971,0.00012854,2]
[334945899,1723665951365,-163.660971,0.00012918,2]
[334945900,1723665951387,-163.660971,0.00012983,2]
[334945901,1723665951408,-163.660971,0.00013048,2]
[334945902,1723665951427,-493.00364752,0.00013333,2]
[334945903,1723665951450,-190.85060772,0.00013333,2]
[334945904,1723665951470,-806.88929846,0.00013333,2]
[334945905,1723665951490,-300.0,0.00013497,2]
[334945906,1723665951510,-210.02355444,0.00013497,2]
[334945907,1723665951530,-684.45070393,0.00013498,2]
[334945908,1723665956121,-487.830186,0.00012986,2]
[334945909,1723665956142,-457.259814,0.00013498,2]
[334945910,1723666031112,-175.41849837,0.00013497,2]
[334945914,1723666142172,1949.0,0.00027,120]
[334945933,1723666239004,-565.05427701,0.00012899,2]
[334945945,1723666240601,-966.0,0.00012899,2]
[334945952,1723666240656,-12913.19532492,0.00012899,2]
[334945954,1723666240665,-897.92379833,0.00012989,2]
[334945956,1723666240674,-155.18167037,0.00012999,2]
[334945958,1723666240684,-265.99065928,0.00013051,2]
[334945960,1723666240693,-494.60550184,0.00013496,2]
[334945962,1723666240703,-156.87111249,0.00013496,2]
[334945964,1723666240713,-852.0739415,0.00013598,2]
[334945966,1723666240722,-639.84526611,0.00013599,2]
[334945968,1723666240732,-500.0,0.00013687,2]
[334945970,1723666240742,-12448.37657394,0.00013688,2]
[334945972,1723666240754,-19847.47035406,0.00013688,2]
[334945974,1723666240763,-6459.1693856,0.00013689,2]
[334945976,1723666240773,-500.0,0.00013697,2]
[334945978,1723666240783,-193.46,0.00013697,2]
[334945980,1723666240793,-12364.82534039,0.00013698,2]
[334945982,1723666240803,-294.09,0.00013698,2]
[334945984,1723666240812,-500.0,0.00013698,2]
[334945986,1723666240822,-342.56653134,0.00013698,2]
[334945988,1723666240831,-557.79,0.00013698,2]
[334945990,1723666240840,-569.32236812,0.00013698,2]
[334945992,1723666240850,-580.93,0.00013698,2]
[334945994,1723666240859,-500.0,0.00013698,2]
[334945996,1723666240869,-500.0,0.00013698,2]
[334945998,1723666240879,-500.0,0.00013698,2]
[334946000,1723666240889,-500.0,0.00013698,2]
[334946002,1723666240898,-500.0,0.00013698,2]
[334946004,1723666240908,-500.0,0.00013698,2]
[334946006,1723666240917,-517.1,0.00013698,2]
[334946008,1723666240927,-546.97301708,0.00013698,2]
[334946025,1723666241080,-500.0,0.00013698,2]
[334946027,1723666241090,-523.66,0.00013698,2]
[334946029,1723666241100,-500.0,0.00013698,2]
[334946031,1723666241110,-500.0,0.00013698,2]
[334946033,1723666241120,-500.0,0.00013698,2]
[334946035,1723666241129,-500.0,0.00013698,2]
[334946037,1723666241140,-188.4091365,0.00013698,2]
[334946039,1723666241149,-201.06638355,0.00013698,2]
[334946041,1723666241158,-500.0,0.00013698,2]
[334946043,1723666241167,-500.0,0.00013698,2]
[334946045,1723666241177,-500.0,0.00013698,2]
[334946047,1723666241186,-500.0,0.00013698,2]
[334946049,1723666241195,-500.0,0.00013698,2]
[334946051,1723666241205,-500.0,0.00013698,2]
[334946052,1723666241215,-500.0,0.00013698,2]
[334946054,1723666241224,-500.0,0.00013698,2]
[334946056,1723666241234,-500.0,0.00013698,2]
[334946058,1723666241243,-500.0,0.00013698,2]
[334946060,1723666241253,-500.0,0.00013698,2]
[334946062,1723666241263,-500.0,0.00013698,2]
[334946064,1723666241272,-727.94,0.00013698,2]
[334946066,1723666241282,-500.0,0.00013698,2]
[334946068,1723666241291,-500.0,0.00013698,2]
[334946070,1723666241302,-500.0,0.00013698,2]
[334946072,1723666241312,-500.0,0.00013698,2]
[334946074,1723666241321,-500.0,0.00013698,2]
[334946076,1723666241331,-503.34650038,0.00013698,2]
[334946079,1723666241341,-500.0,0.00013698,2]
[334946080,1723666241350,-500.0,0.00013698,2]
[334946083,1723666241364,-500.0,0.00013698,2]
[334946085,1723666241374,-500.0,0.00013698,2]
[334946087,1723666241385,-500.0,0.00013698,2]
[334946089,1723666241403,-500.0,0.00013698,2]
[334946091,1723666241412,-500.0,0.00013698,2]
[334946093,1723666241422,-505.36402032,0.00013698,2]
[334946095,1723666241431,-500.0,0.00013698,2]
[334946097,1723666241441,-500.0,0.00013698,2]
[334946099,1723666241450,-568.68060409,0.00013698,2]
[334946101,1723666241459,-505.85005909,0.00013698,2]
[334946103,1723666241469,-500.0,0.00013698,2]
[334946105,1723666241479,-500.0,0.00013698,2]
[334946107,1723666241489,-504.8375761,0.00013698,2]
[334946109,1723666241499,-508.38490867,0.00013698,2]
[334946111,1723666241508,-500.0,0.00013698,2]
[334946113,1723666241518,-500.0,0.00013698,2]
[334946115,1723666241528,-500.0,0.00013698,2]
[334946117,1723666241540,-500.0,0.00013698,2]
[334946119,1723666241550,-500.0,0.00013698,2]
[334946121,1723666241559,-500.0,0.00013698,2]
[334946123,1723666241570,-514.56240415,0.00013698,2]
[334946125,1723666241579,-500.0,0.00013698,2]
[334946127,1723666241588,-500.0,0.00013698,2]
[334946129,1723666241597,-500.0,0.00013698,2]
[334946131,1723666241607,-567.15,0.00013698,2]
[334946133,1723666241618,-500.0,0.00013698,2]
[334946136,1723666241628,-519.47,0.00013698,2]
[334946138,1723666241639,-500.0,0.00013698,2]
[334946140,1723666241648,-500.0,0.00013698,2]
[334946141,1723666241658,-500.0,0.00013698,2]
[334946143,1723666241666,-500.0,0.00013698,2]
[334946145,1723666241676,-500.0,0.00013698,2]
[334946147,1723666241686,-500.0,0.00013698,2]
[334946149,1723666241695,-500.0,0.00013698,2]
[334946152,1723666241705,-500.0,0.00013698,2]
[334946154,1723666241715,-500.0,0.00013698,2]
[334946155,1723666241724,-500.0,0.00013698,2]
[334946158,1723666241734,-500.0,0.00013698,2]
[334946159,1723666241744,-500.0,0.00013698,2]
[334946161,1723666241754,-500.0,0.00013698,2]
[334946163,1723666241763,-491.88950746,0.00013698,2]
[334946165,1723666241773,-502.65813162,0.00013698,2]
[334946167,1723666241783,-502.07300744,0.00013698,2]
[334946170,1723666241793,-500.0,0.00013698,2]
[334946172,1723666241802,-500.0,0.00013698,2]
[334946174,1723666241812,-500.0,0.00013698,2]
[334946175,1723666241821,-500.0,0.00013698,2]
[334946177,1723666241830,-500.0,0.00013698,2]
[334946179,1723666241839,-500.0,0.00013698,2]
[334946182,1723666241850,-500.0,0.00013698,2]
[334946184,1723666241859,-500.0,0.00013698,2]
[334946186,1723666241869,-500.0,0.00013698,2]
[334946188,1723666241879,-500.0,0.00013698,2]
[334946190,1723666241894,-500.0,0.00013698,2]
[334946191,1723666241906,-500.0,0.00013698,2]
[334946192,1723666241915,-500.0,0.00013698,2]
[334946193,1723666241925,-500.0,0.00013698,2]
[334946194,1723666241935,-500.0,0.00013698,2]
[334946195,1723666241944,-500.0,0.00013698,2]
[334946196,1723666241954,-500.0,0.00013698,2]
[334946197,1723666241964,-500.0,0.00013698,2]
[334946198,1723666241974,-500.0,0.00013698,2]
[334946199,1723666241983,-500.0,0.00013698,2]
[334946200,1723666241992,-500.0,0.00013698,2]
[334946201,1723666242002,-500.0,0.00013698,2]
[334946203,1723666242011,-500.0,0.00013698,2]
[334946205,1723666242020,-501.88970458,0.00013698,2]
[334946207,1723666242030,-500.0,0.00013698,2]
[334946209,1723666242039,-500.0,0.00013698,2]
[334946211,1723666242049,-500.0,0.00013698,2]
[334946213,1723666242058,-500.0,0.00013698,2]
[334946215,1723666242068,-500.0,0.00013698,2]
[334946217,1723666242078,-500.0,0.00013698,2]
[334946219,1723666242087,-500.0,0.00013698,2]
[334946221,1723666242097,-500.0,0.00013698,2]
[334946223,1723666242106,-267.57736963,0.00013698,2]
[334946334,1723666243129,-232.42263037,0.00013698,2]
[334946337,1723666243141,-500.0,0.00013698,2]
[334946339,1723666243151,-500.0,0.00013698,2]
[334946342,1723666243160,-501.29999261,0.00013698,2]
[334946345,1723666243170,-500.0,0.00013698,2]
[334946346,1723666243179,-501.85928657,0.00013698,2]
[334946348,1723666243189,-500.0,0.00013698,2]
[334946350,1723666243198,-500.0,0.00013698,2]
[334946353,1723666243207,-537.4,0.00013698,2]
[334946356,1723666243216,-500.0,0.00013698,2]
[334946358,1723666243225,-500.0,0.00013698,2]
[334946360,1723666243235,-500.0,0.00013698,2]
[334946362,1723666243244,-507.49307374,0.00013698,2]
[334946364,1723666243253,-500.0,0.00013698,2]
[334946366,1723666243262,-500.0,0.00013698,2]
[334946367,1723666243271,-500.0,0.00013698,2]
[334946369,1723666243281,-500.0,0.00013698,2]
[334946370,1723666243290,-500.0,0.00013698,2]
[334946372,1723666243300,-500.0,0.00013698,2]
[334946374,1723666243310,-500.0,0.00013698,2]
[334946375,1723666243320,-500.0,0.00013698,2]
[334946376,1723666243329,-500.0,0.00013698,2]
[334946377,1723666243338,-500.0,0.00013698,2]
[334946379,1723666243349,-500.0,0.00013698,2]
[334946381,1723666243358,-500.0,0.00013698,2]
[334946383,1723666243367,-500.0,0.00013698,2]
[334946385,1723666243376,-500.0,0.00013698,2]
[334946387,1723666243388,-502.996978,0.00013698,2]
[334946389,1723666243398,-507.86777925,0.00013698,2]
[334946391,1723666243406,-500.0,0.00013698,2]
[334946393,1723666243416,-500.0,0.00013698,2]
[334946395,1723666243426,-500.0,0.00013698,2]